Cogmind - Beta 11.1 *** ADVENTURER MODE // 2022.08.19 @ 15:17:04 Player: JESUS IS KING Result: Destroyed by G-34 Mercenary with Small Laser Performance ------------- Evolutions (1) 500 Regions Visited (3) 600 Robots Destroyed (41) 205 Value Destroyed (601) 601 Prototype IDs (0) 0 Alien Tech Used (0) 0 Bonus (0) 0 TOTAL SCORE: 1906 Bonus ------- None Cogmind --------- Core Integrity 0/400 Matter 300/300 Energy 100/100 System Corruption 2% Temperature Cool (6) Movement Core (100) Ox1 Location -9/Mines Parts ------- > --- POWER (3) -------- (None) > --- PROPULSION (2) --- (None) > --- UTILITY (2) ------ Small Storage Unit > --- WEAPON (2) ------- (None) > --- INVENTORY (8) ---- Small Storage Unit Improved Terrain Scanner Hardened Medium Armor Plating Hardened Medium Armor Plating High-powered Shotgun Peak State ------------ > --- POWER ------------ Ion Engine Nuclear Core Nuclear Core > --- PROPULSION ------- (None) > --- UTILITY ---------- Small Storage Unit High-capacity Matter Pod > --- WEAPON ----------- Small Laser High-powered Shotgun > --- INVENTORY -------- Small Storage Unit Improved Terrain Scanner Hardened Medium Armor Plating Hardened Medium Armor Plating High-powered Shotgun [Rating: 14] Favorites ----------- Power Nuclear Core Engine Ion Engine Power Core Nuclear Core Propulsion Light Treads Treads Light Treads Utility Small Storage Unit Storage Small Storage Unit Weapon Small Laser Energy Gun Small Laser Ballistic Gun High-powered Shotgun Launcher Grenade Launcher Build | -11 -10 -9 -9 ------- Run | Scr Mat Mat Min Slots Evolved 2 | . . 2 . Power 2 | . . 2 . Propulsion . | . . . . Utility . | . . . . Weapon . | . . . . Parts Attached 13 | 4 4 5 . Power 4 | . 1 3 . Engine 2 | . 1 1 . Core 2 | . . 2 . Reactor . | . . . . Propulsion 2 | 2 . . . Treads 2 | 2 . . . Leg . | . . . . Wheel . | . . . . Hover . | . . . . Flight . | . . . . Utility 3 | 1 2 . . Device . | . . . . Storage 3 | 1 2 . . Processor . | . . . . Hackware . | . . . . Protection . | . . . . Artifact . | . . . . Weapon 4 | 1 1 2 . Energy Gun 2 | 1 . 1 . Energy Cannon . | . . . . Ballistic Gun 1 | . . 1 . Ballistic Cannon . | . . . . Launcher 1 | . 1 . . Special Weapon . | . . . . Impact Weapon . | . . . . Slashing Weapon . | . . . . Piercing Weapon . | . . . . Special Melee Weapon . | . . . . Unidentified Prototypes . | . . . . Parts Lost 11 | . 1 4 6 Power 4 | . . 1 3 Propulsion 2 | . . 2 . Utility 1 | . . . 1 Weapon 4 | . 1 1 2 Highest Loss Streak 5 | . 1 4 5 To Critical Strikes . | . . . . Average Slot Usage (%) 69 | . 91 63 63 Engine 6 | . 13 4 3 Core 12 | . . 14 19 Treads 8 | . 28 4 . Storage 22 | . 27 22 21 Energy Gun 10 | . 14 9 10 Ballistic Gun 6 | . . 7 9 Launcher 1 | . 8 . . Naked Turns . | . . . . Heaviest Build 32 | 7 20 32 32 Greatest Support 40 | 40 40 40 3 Greatest Overweight (x) 10 | . . 10 10 Average Overweight (x) 2 | . . 4 7 Largest Inventory Capacity 8 | 8 8 8 8 Average Capacity 7 | 7 8 8 8 Most Carried 8 | 5 6 8 5 Average Carried 4 | 4 3 5 5 Final Capacity 8 | 8 8 8 8 Final Carried 5 | 5 4 5 5 Class Distribution -------------------- 100% | Mutant Dominant Class ---------------- Mutant | -10/Materials Mutant | -9/Materials Mutant | -9/Mines Resources | -11 -10 -9 -9 ----------- Run | Scr Mat Mat Min Matter Collected 492 | 240 210 33 9 Remotely . | . . . . Salvage Created 977 | 230 381 357 9 Parts 88 | 23 24 41 . Haulers Intercepted 2 | . 2 . . Recyclers Shooed 1 | . . 1 . Parts Field Recycled . | . . . . Retrieved Matter . | . . . . Parts Self-Destructed . | . . . . Prevented . | . . . . Kills | -11 -10 -9 -9 ------- Run | Scr Mat Mat Min Combat Hostiles Destroyed 23 | . 7 15 1 Melee 1 | . . 1 . Guns 19 | . 4 14 1 AOE 3 | . 3 . . Classes Destroyed 10 | 3 5 1 1 Worker 1 | 1 . . . Builder 5 | . 4 1 . Tunneler 5 | 5 . . . Hauler 2 | . 2 . . Recycler 2 | 1 1 . . Watcher 4 | . 2 2 . Swarmer 13 | . 3 10 . Grunt 8 | . 4 4 . Sentry 1 | . . 1 . Assembled 1 | . . . 1 Best Kill Streak 10 | 3 10 6 1 Combat Bots Only 6 | . 3 6 1 Max Kills in Single Turn 5 | 1 5 2 1 Gunslinging 1 | . . 1 . Exploded 1 | . 1 . . Melee 1 | . . 1 . Uniques/NPCs Destroyed . | . . . . Combat | -11 -10 -9 -9 -------- Run | Scr Mat Mat Min Damage Taken 1412 | . 302 757 353 Core 411 | . 8 230 173 Absorbed by Shields . | . . . . Core Remaining (%) 98 | 100 96 . . Volleys Fired 62 | 15 14 32 1 Largest 2 | 1 2 2 2 Hottest 70 | 40 70 65 65 Shots Fired 89 | 15 21 51 2 Gun 82 | 15 14 51 2 Cannon . | . . . . Launcher 7 | . 7 . . Special . | . . . . Kinetic 20 | . . 19 1 Thermal 21 | . . 20 1 Explosive 7 | . 7 . . Electromagnetic 41 | 15 14 12 . Robot Hit Streak 14 | 5 14 7 3 Robot Miss Streak 3 | 1 1 3 . Penetration Max . | . . . . Secondary Targets 4 | . . 4 . Max Gunslinging Chain 1 | . . 1 . Shots Hit Robots 71 | 12 17 40 2 Core Hits 60 | 7 22 27 4 Critical Kills . | . . . . Critical Parts Destroyed 1 | . . 1 . Critical Strikes 1 | . . 1 . Destroy 1 | . . 1 . Melee Attacks . | . . . . Impact . | . . . . Slashing . | . . . . Piercing . | . . . . Sneak Attacks . | . . . . Combat Hostiles . | . . . . Follow-up Attacks . | . . . . Damage Inflicted 1550 | 156 747 599 48 Guns 913 | 156 158 570 29 Cannons . | . . . . Explosions 589 | . 589 . . Melee . | . . . . Ramming 48 | . . 29 19 Kinetic 313 | . . 296 17 Thermal 308 | . 109 187 12 Explosive 480 | . 480 . . Electromagnetic 401 | 156 158 87 . Impact . | . . . . Slashing . | . . . . Piercing . | . . . . Highest Corruption 2 | . . 2 2 Average Corruption 1 | . . 1 2 Corruption Purged . | . . . . Corruption Blocked . | . . . . Effects 4 | . . 1 3 Matter Fused 1 | . . . 1 Heat Flow Errors 2 | . . 1 1 Data Loss (minor) 1 | . . . 1 Overload Shots . | . . . . Overflow Damage . | . . . . Projectiles . | . . . . Explosions . | . . . . Melee . | . . . . Knockbacks 1 | . . . 1 Impact 1 | . . . 1 Kinetic . | . . . . Secondary . | . . . . Self-Inflicted Damage 147 | . 138 2 7 Shots 5 | . 5 . . Rammed 34 | . . 16 18 Targets Rammed 35 | . . 17 18 Kicked . | . . . . Crushed 1 | . . 1 . Highest Temperature 168 | . 48 168 110 Average Temperature 34 | . 17 37 62 Received Heat Transfer 519 | . 93 222 204 Siege Activations . | . . . . Robots Corrupted . | . . . . Combat Hostiles . | . . . . Parts Fried 1 | . 1 . . Impact Corruptions . | . . . . Robots Melted . | . . . . Combat Hostiles . | . . . . Parts Melted . | . . . . Heat Transferred 550 | . 100 425 25 Parts Sabotaged . | . . . . Parts Stolen . | . . . . Parts Stripped . | . . . . Power Chain Reactions 2 | . 2 . . Missiles Intercepted . | . . . . Alert | -11 -10 -9 -9 ------- Run | Scr Mat Mat Min Peak Influence 366 | 35 366 219 46 Initial 131 | . 19 131 46 Average 113 | 16 223 129 34 Maximum Alert Level 1 | . 1 1 . Low Security (%) 73 | 100 41 67 100 Level 1 26 | . 58 32 . Level 2 . | . . . . Level 3 . | . . . . Level 4 . | . . . . Level 5 . | . . . . High Security . | . . . . Max Security . | . . . . Squads Dispatched 3 | . 1 2 . Investigation 1 | . 1 . . Extermination . | . . . . Reinforcement 2 | . . 2 . Assault . | . . . . Garrison . | . . . . Intercept . | . . . . Searches Triggered . | . . . . Construction Impeded . | . . . . Haulers Reinforced . | . . . . Active Scanning Responses . | . . . . Cargo Convoy Interrupts . | . . . . Stealth | -11 -10 -9 -9 --------- Run | Scr Mat Mat Min Distress Signals 2 | . . 2 . Communications Jammed . | . . . . Distress Signals . | . . . . Times Spotted 34 | . 9 22 3 Peak Tracking Total 5 | . 3 5 2 Tactical Retreats 1 | . . . 1 Traps | -11 -10 -9 -9 ------- Run | Scr Mat Mat Min Traps Triggered 2 | . . 2 . Indirectly . | . . . . Trap Hack Attempts . | . . . . Triggered . | . . . . Disarmed . | . . . . Reprogrammed . | . . . . Reused . | . . . . Traps Extracted . | . . . . Installed . | . . . . Triggered . | . . . . Machines | -11 -10 -9 -9 ---------- Run | Scr Mat Mat Min Machines Disabled . | . . . . Max in Single Turn . | . . . . Machines Sabotaged . | . . . . Garrisons Compromised . | . . . . Overloaded Fab Kills . | . . . . Hacking | -11 -10 -9 -9 --------- Run | Scr Mat Mat Min Machines Accessed 2 | . 1 1 . Terminals 1 | . . 1 . Fabricators . | . . . . Repair Stations . | . . . . Recycling Units 1 | . 1 . . Scanalyzers . | . . . . Garrison Access . | . . . . Total Hacks 5 | . 3 2 . Successful 4 | . 3 1 . Failed 1 | . . 1 . Catastrophic . | . . . . Database Lockouts . | . . . . Manual . | . . . . Terminals 2 | . . 2 . Fabricators . | . . . . Repair Stations . | . . . . Recycling Units 3 | . 3 . . Scanalyzers . | . . . . Garrison Access . | . . . . Terminal Hacks 1 | . . 1 . Registered Components 1 | . . 1 . Fabricator Hacks . | . . . . Repair Station Hacks . | . . . . Recycling Unit Hacks 3 | . 3 . . Process 1 | . 1 . . Report Inventory 1 | . 1 . . Retrieve Matter 1 | . 1 . . Scanalyzer . | . . . . Garrison Access Hacks . | . . . . Unauthorized Hacks . | . . . . Terminals . | . . . . Fabricators . | . . . . Repair Stations . | . . . . Recycling Units . | . . . . Scanalyzers . | . . . . Garrison Access . | . . . . Data Cores Recovered . | . . . . Used . | . . . . Hacking Detections 1 | . 1 . . Full Trace Events 1 | . 1 . . Feedback Events . | . . . . Feedback Blocked . | . . . . Robot Schematics Acquired . | . . . . Robots Built . | . . . . Authchips . | . . . . Time . | . . . . Total Robot Build Rating . | . . . . Part Schematics Acquired . | . . . . Parts Built . | . . . . Authchips . | . . . . Time . | . . . . Total Part Build Rating . | . . . . Parts Repaired . | . . . . Time . | . . . . Parts Recycled . | . . . . Recycled Matter 134 | . 134 . . Retrieved Matter 134 | . 134 . . Retrieved Components . | . . . . Parts Scanalyzed . | . . . . Part Schematics Acquired . | . . . . Parts Damaged . | . . . . Bothacking | -11 -10 -9 -9 ------------ Run | Scr Mat Mat Min Used RIF Installer . | . . . . Robots Hacked . | . . . . Non-combat . | . . . . Combat . | . . . . Robot Hacks Applied . | . . . . Relay Couplers Released . | . . . . Fabnet Peak Effective % . | . . . . Robots Rewired . | . . . . Allies Hacked . | . . . . Hacks Repelled . | . . . . Allies | -11 -10 -9 -9 -------- Run | Scr Mat Mat Min Total Allies . | . . . . Largest Group . | . . . . Highest-Rated Group . | . . . . Highest-Rated Ally . | . . . . Total Orders . | . . . . Ally Attacks . | . . . . Total Damage . | . . . . Kills . | . . . . Allies Corrupted . | . . . . Allies Melted . | . . . . Intel | -11 -10 -9 -9 ------- Run | Scr Mat Mat Min Robot Analysis Total . | . . . . Derelict Logs Recovered . | . . . . Drone Launches . | . . . . Drone Recoveries . | . . . . Exploration | -11 -10 -9 -9 ------------- Run | Scr Mat Mat Min Turns Passed 1731 | 234 309 858 330 Spaces Moved 607 | 135 168 239 65 Core 232 | 21 . 146 65 Treads 375 | 114 168 93 . Legs . | . . . . Wheels . | . . . . Hover . | . . . . Flight . | . . . . Fastest Speed 50 | 50 160 150 100 Average Speed 244 | 142 160 308 436 Slowest Speed 550 | 160 160 550 550 Overloaded Moves . | . . . . Propulsion Burnouts . | . . . . Robots Hopped . | . . . . Cave-ins Triggered . | . . . . Exploration Rate (%) 16 | 8 29 20 8 Regions Visited 3 Branch Regions 1 Pre-discovered Areas . | . . . . Known Exits Taken . | . . . . Unknown Exits Taken 3 | 1 1 1 . Scrap Searched . | . . . . Spaces Dug . | . . . . Terrain Destroyed 45 | . 45 . . Melee . | . . . . Projectile . | . . . . AOE 45 | . 45 . . Terrain Rammed . | . . . . Walls Destroyed . | . . . . Machines Disabled . | . . . . Actions | -11 -10 -9 -9 --------- Run | Scr Mat Mat Min Total 730 | 161 187 298 84 Wait . | . . . . Move 604 | 134 167 238 65 Hop . | . . . . Pick Up 16 | 8 2 6 . Fast Attach 1 | 1 . . . Attach 11 | 3 3 5 . Detach . | . . . . Swap 1 | . 1 . . Drop . | . . . . Fire 62 | 15 14 32 1 Melee . | . . . . Ram 23 | . . 5 18 Kick . | . . . . Crush 12 | . . 12 . Escape Stasis . | . . . . Rewire . | . . . . Trap . | . . . . Miscellaneous . | . . . . Route ------- -11/Scrapyard -10/Materials -9/Materials (discovered 2 exits: [*Mat] / [*Min]) -9/Mines (discovered 1 exit: [*Zio]) History --------- Turn | Location | Event 19 | -11/Scrapyard | Discovered new exit (range 14) 235 | -11/Scrapyard | Entered Materials 313 | -10/Materials | Build established: Mutant 533 | -10/Materials | Discovered new exit (range 4) 544 | -10/Materials | Entered another Materials area 544 | -9/Materials | Evolved 2 slots: Power x2 766 | -9/Materials | Lost 4 parts (1p2n1w) 1082 | -9/Materials | Discovered new exit (range 13) 1265 | -9/Materials | Discovered new exit (range 13) 1357 | -9/Materials | Core integrity fell below 50% 1402 | -9/Materials | Entered Mines 1403 | -9/Mines | A Derelict revealed a hidden shortcut to a safe place 1491 | -9/Mines | Excavation squad dispatched 1491 | -9/Mines | A large section of the Mines collapsed 1718 | -9/Mines | Core integrity fell below 20% 1732 | -9/Mines | Destroyed by G-34 Mercenary with Small Laser Last Messages --------------- 01707_ Slammed into G-34 Mercenary. 01707_ T-07 Excavator is excavating. 01710_ Slammed into G-34 Mercenary. 01710_ Nuclear Core destroyed. 01711_ System corrupted: Heat flow error (+138). 01712_ T-07 Excavator is excavating. 01713_ Slammed into G-34 Mercenary. 01713_ Destabilizing: Core damaged (-8). 01713_ T-07 Excavator destroyed. 01716_ Slammed into G-34 Mercenary. 01717_ T-07 Excavator is excavating. 01717_ Slammed into G-34 Mercenary. 01717_ Destabilizing: Core damaged (-12). 01720_ Acquired 9 matter. 01721_ T-07 Excavator is excavating. 01723_ Slammed into G-34 Mercenary. 01724_ Hcp. Matter Pod destroyed. 01725_ Slammed into G-34 Mercenary. 01725_ G-34 Mercenary knocked back. 01726_ Slammed into G-34 Mercenary. Map ----- +----------------------------------------------------+ | ?????????????????????????????????????????????????? | | ?????????????????????????????????????????????????? | | ?????????????????????????????????????????????????? | | ?????????????????????????????????????????????????? | | ?????????????????????????????????????????????????? | | ?????????????????????????????????????????????????? | | ?????????????????????????????????????????????????? | | ?????????????????????????????????????????????????? | | ?????????????????????????????????????????????????? | | ?????????????????????????????????????????????????? | | ?????????????????????????????????????????????????? | | ?????????????????????????????????????????????????? | | ?????????????????????????????????????????????????? | | ????????????????###??????????????????????????????? | | ???????????????? #???###???????????????????????? | | ???????????????? ??? ???????????????????????? | | ????????????????# #???# #???????????????????????? | | ????????????????# #???# #???????????????????????? | | ????????????????# #???# #???????????????????????? | | ????????????????# "#??## #???????????????????????? | | ????????????????# #?## ##??????????????????????? | | ????????????????# ### ##?????????????????????? | | ????????????????# ## ; #?????????????????????? | | ???????????????## gt%* #?????????????????????? | | ???????????????## ; %=%! #?????????????????????? | | ????????????######## #%g @##?????????????????????? | | ????????????# #"######??????????????????????? | | ????????????# ### ###???????????????????????????? | | ????????????# #?#####????????????????????????????? | | ???????????## ##?????????????????????????????????? | | ??????????## ##????????????????????????????????? | | ??????????# >##???????????????????????????????? | | ??????????# #???????????????????????????????? | | ??????????## #???????????????????????????????? | | ???????? ##???????????????????????????????? | | ????# ########????????????????????????????????? | | ????## ??????????????????????????????????????????? | | ?????????????????????????????????????????????????? | | ?????????????????????????????????????????????????? | | ?????????????????????????????????????????????????? | | | | | | | | | | | | | | | | | | | | | +----------------------------------------------------+ Best States ------------- Heat Dissipation 28 Energy Generation 23 Energy Capacity 390 Matter Stores 500 Matter Capacity 500 Sight Range 16 Terrain Scan Density 10 Resistance: KI 20 Resistance: TH 20 Resistance: EX 20 Resistance: EM 20 Resistance: I 20 Resistance: S 20 Resistance: P 20 Evasion (%) 50 Recoil Reduction 2 Offensive Hacking 10 Item Schematics ----------------- None Robot Schematics ------------------ None Fabricated ------------ Nothing Alien Tech Used ----------------- None Achievements -------------- None Challenges ------------ None Game ------ Seed TargetingSpectralRifle Manual? 0 Play Time 00:10:59 Cumulative 6.0 hours Start 2022.08.19 @ 15:06:34 End 2022.08.19 @ 15:17:04 Sessions 1 Manual Loads 0 Difficulty Adventurer Special Mode None Game No. 9 Rogue 0 Adventurer 9 Explorer 0 Win Type - Total 0 Types 0/0/0/0/0/0/0/0/0 Lore% 3 Gallery% 11 Achievement% 9 Wizard Run 0 Options --------- ASCII 0 Keyboard 0 Movement Arrows Keybinds 0 Fullscreen 1 Font 36/Smallcaps Map View 76x50 Tactical HUD 1 Map Filters NONE Filters NONE Steam 1 RUN: f50134ed-8395-437c-843f-df3765986059